lending/lending_fUSD_20260104
["ID","MTS","AMOUNT","RATE_DAILY","PERIOD"]
[400406028,1767519373502,-1180.99883102,0.00017298,2]
[400406029,1767519373536,-1180.99883102,0.00017298,2]
[400406030,1767519373573,-1178.30460182,0.00017298,2]
[400406031,1767519373707,-2.6942292,0.00017298,2]
[400406032,1767519379640,-600.0,0.00017161,2]
[400406033,1767519379705,-226.97311419,0.00017161,2]
[400406034,1767519379775,-1180.99883102,0.00017298,2]
[400406035,1767519379819,-1180.99883102,0.00017298,2]
[400406036,1767519379856,-1180.99883102,0.00017298,2]
[400406037,1767519379891,-79.07195448,0.00017298,2]
[400406038,1767519380001,-1101.92687654,0.00017298,2]
[400406039,1767519380036,-1180.99883102,0.00017298,2]
[400406040,1767519380070,-1180.99883102,0.00017298,2]
[400406041,1767519380104,-1180.99883102,0.00017298,2]
[400406042,1767519380204,-1180.99883102,0.00017298,2]
[400406043,1767519380240,-1180.99883102,0.00017298,2]
[400406044,1767519380277,-1180.99883102,0.00017298,2]
[400406045,1767519380312,-1180.99883102,0.00017298,2]
[400406046,1767519380459,-631.09130632,0.00017298,2]
[400406047,1767519380473,-549.9075247,0.00017298,2]
[400406048,1767519380483,-631.09130632,0.00017298,2]
[400406049,1767519380497,-549.9075247,0.00017298,2]
[400406050,1767519380506,-2.11182714,0.00017298,2]
[400406051,1767519383095,-1178.88700388,0.00017298,2]
[400406052,1767519383130,-1180.99883102,0.00017298,2]
[400406053,1767519383165,-1180.99883102,0.00017298,2]
[400406054,1767519383199,-1180.99883102,0.00017298,2]
[400406055,1767519383280,-556.24300612,0.00017298,2]
[400406056,1767519383364,-624.7558249,0.00017298,2]
[400406057,1767519383401,-8750.4983502,0.00017299,2]
[400406058,1767519389303,-10000.01,0.00017299,2]
[400406059,1767519389481,-10000.01,0.00017299,2]
[400406060,1767519389683,-10000.01,0.00017299,2]
[400406061,1767519396063,-10000.01,0.00017299,2]
[400406062,1767519396417,-10000.01,0.00017299,2]
[400406063,1767519402023,-1568.40162375,0.00017298,2]
[400406064,1767519402062,-1568.40162375,0.00017298,2]
[400406065,1767519402094,-1568.40162375,0.00017298,2]
[400406066,1767519402155,-589.6002575,0.00017298,2]
[400406067,1767519402391,-978.80136625,0.00017298,2]
[400406068,1767519402425,-1568.40162375,0.00017298,2]
[400406069,1767519402457,-1568.40162375,0.00017298,2]
[400406070,1767519402490,-200.39914875,0.00017298,2]
[400406071,1767519402549,-1368.002475,0.00017298,2]
[400406072,1767519402697,-1568.40162375,0.00017298,2]
[400406073,1767519402730,-1568.40162375,0.00017298,2]
[400406074,1767519402779,-3726.403505,0.00017299,2]
[400406079,1767519538692,10000.01,0.00016986,2]
[400406080,1767519538715,5664.62,0.00016986,2]
[400406081,1767519543227,200.0,0.00016797,2]
[400406082,1767519567469,-500.0,0.00017198,2]
[400406083,1767519567501,-500.0,0.00017198,2]
[400406084,1767519567534,-500.0,0.00017198,2]
[400406085,1767519567570,-500.0,0.00017198,2]
[400406086,1767519567602,-500.0,0.00017198,2]
[400406087,1767519567641,-500.0,0.00017198,2]
[400406088,1767519567677,-500.0,0.00017198,2]
[400406089,1767519567710,-500.0,0.00017198,2]
[400406090,1767519567742,-500.0,0.00017198,2]
[400406091,1767519567772,-500.0,0.00017198,2]
[400406092,1767519567966,-500.0,0.00017198,2]
[400406093,1767519567999,-500.0,0.00017198,2]
[400406094,1767519568033,-500.0,0.00017198,2]
[400406095,1767519568064,-500.0,0.00017198,2]
[400406096,1767519568095,-500.0,0.00017198,2]
[400406097,1767519568127,-500.0,0.00017198,2]
[400406098,1767519568159,-500.0,0.00017198,2]
[400406099,1767519568190,-500.0,0.00017198,2]
[400406100,1767519568221,-500.0,0.00017198,2]
[400406101,1767519568252,-500.0,0.00017198,2]
[400406102,1767519573769,-500.0,0.00017198,2]
[400406103,1767519573801,-500.0,0.00017198,2]
[400406104,1767519573833,-644.8964197,0.00017198,2]
[400406105,1767519573864,-500.0,0.00017198,2]
[400406106,1767519573895,-500.0,0.00017198,2]
[400406107,1767519573925,-317.0,0.00017198,2]
[400406108,1767519573953,-550.0,0.00017198,2]
[400406109,1767519573981,-300.0,0.00017198,2]
[400406110,1767519582836,500.0,0.00017198,2]
[400406111,1767519593811,1876.2171606,0.00017099,2]
[400406112,1767519593835,199.43674426,0.00017099,2]
[400406113,1767519595724,239.9642021,0.00032876,120]
[400406114,1767519600211,3041.86,0.00016943,2]
[400406115,1767519601344,300.0,0.00017198,2]
[400406116,1767519601376,1200.0,0.00017198,2]
[400406117,1767519620414,182.91489698,0.00017198,2]
[400406118,1767519626201,150.0,0.00043722,120]
[400406119,1767519627159,245.20272775,0.00017198,2]
[400406120,1767519628573,500.0,0.00017198,2]
[400406121,1767519628739,266.69628261,0.00017198,2]
[400406122,1767519629590,500.0,0.00017198,2]
[400406123,1767519658962,1852.42,0.00016728,2]
[400406124,1767519663130,150.0,0.00043722,120]
[400406125,1767519686668,150.0,0.00043722,120]
[400406126,1767519721814,300.0,0.00017198,2]
[400406127,1767519721881,550.0,0.00017198,2]
[400406128,1767519741245,500.0,0.00017198,2]
[400406129,1767519741293,361.4793484,0.00017198,2]
[400406130,1767519741320,138.5206516,0.00017198,2]
[400406131,1767519741354,460.54404663,0.00017198,2]
[400406140,1767519754412,150.0,0.00016572,2]
[400406144,1767519781553,300.0,0.00017198,2]
[400406145,1767519793030,500.0,0.00017198,2]
[400406146,1767519793062,500.0,0.00017198,2]
[400406147,1767519793093,500.0,0.00017198,2]
[400406148,1767519793124,500.0,0.00017198,2]
[400406149,1767519793155,500.0,0.00017198,2]
[400406150,1767519793188,500.0,0.00017198,2]
[400406151,1767519793220,500.0,0.00017198,2]
[400406152,1767519793251,500.0,0.00017198,2]
[400406153,1767519793279,1200.0,0.00017198,2]
[400406154,1767519793310,500.0,0.00017198,2]
[400406155,1767519793344,500.0,0.00017198,2]
[400406156,1767519793379,500.0,0.00017198,2]
[400406157,1767519793409,500.0,0.00017198,2]
[400406158,1767519793444,500.0,0.00017198,2]
[400406159,1767519793482,600.41864623,0.00017198,2]
[400406160,1767519793513,500.0,0.00017198,2]
[400406161,1767519793547,150.52665554,0.00017198,2]
[400406162,1767519793573,349.47334446,0.00017198,2]
[400406163,1767519793603,500.0,0.00017198,2]
[400406164,1767519793634,500.0,0.00017198,2]
[400406165,1767519793664,500.0,0.00017198,2]
[400406166,1767519793694,500.0,0.00017198,2]
[400406167,1767519793727,500.0,0.00017198,2]
[400406168,1767519793758,500.0,0.00017198,2]
[400406169,1767519793789,500.0,0.00017198,2]
[400406170,1767519793821,500.0,0.00017198,2]
[400406171,1767519793850,500.0,0.00017198,2]
[400406172,1767519793884,500.0,0.00017198,2]
[400406173,1767519793914,500.0,0.00017198,2]
[400406174,1767519793944,500.0,0.00017198,2]
[400406175,1767519793978,500.0,0.00017198,2]
[400406176,1767519794008,500.0,0.00017198,2]
[400406177,1767519794038,500.0,0.00017198,2]
[400406178,1767519794069,500.0,0.00017198,2]
[400406179,1767519794099,500.0,0.00017198,2]
[400406180,1767519794129,500.0,0.00017198,2]
[400406181,1767519794159,500.0,0.00017198,2]
[400406182,1767519794189,150.53665554,0.00017198,2]
[400406183,1767519794214,349.46334446,0.00017198,2]
[400406184,1767519794249,500.0,0.00017198,2]
[400406185,1767519794283,500.0,0.00017198,2]
[400406186,1767519794314,500.0,0.00017198,2]
[400406187,1767519794344,500.0,0.00017198,2]
[400406188,1767519794374,500.0,0.00017198,2]
[400406189,1767519794404,500.0,0.00017198,2]
[400406190,1767519794433,500.0,0.00017198,2]
[400406191,1767519794472,500.0,0.00017198,2]
[400406192,1767519794502,500.0,0.00017198,2]
[400406193,1767519794532,500.0,0.00017198,2]
[400406194,1767519794562,500.0,0.00017198,2]
[400406195,1767519794597,500.0,0.00017198,2]
[400406196,1767519794635,500.0,0.00017198,2]
[400406197,1767519807587,1953.46131777,0.00017099,2]
[400406202,1767519833072,500.0,0.00017198,2]
[400406203,1767519833103,645.60261958,0.00017198,2]
[400406204,1767519833135,51.48271819,0.00017198,2]
[400406205,1767519833158,448.51728181,0.00017198,2]
[400406206,1767519833197,500.0,0.00017198,2]
[400406207,1767519833227,500.0,0.00017198,2]
[400406208,1767519833263,500.0,0.00017198,2]
[400406209,1767519833298,500.0,0.00017198,2]
[400406210,1767519833329,500.0,0.00017198,2]
[400406211,1767519833359,500.0,0.00017198,2]
[400406212,1767519833414,500.0,0.00017198,2]
[400406213,1767519833473,500.0,0.00017198,2]
[400406214,1767519841317,300.0,0.00017198,2]
[400406224,1767519893752,1960.32,0.00016474,2]
[400406225,1767519901223,300.0,0.00017198,2]
[400406226,1767519901258,1200.0,0.00017198,2]
[400406227,1767519904288,550.0,0.00017198,2]
[400406229,1767519920719,1241.17271819,0.00017099,2]
[400406230,1767519920742,10000.01,0.00017099,2]
[400406231,1767519920768,10000.01,0.00017099,2]
[400406232,1767519920790,74.36718181,0.00017099,2]
[400406236,1767519939086,-3299.9104,0.00017199,2]
[400406237,1767519939429,-3400.1892,0.00017199,2]
[400406238,1767519939654,-4106.2786,0.00017199,2]
[400406239,1767519939682,-356.9226,0.00017199,2]
[400406240,1767519939711,-195.0,0.00017201,2]
[400406241,1767519939740,-83.6076,0.00017206,2]
[400406242,1767519939993,-516.3924,0.00017206,2]
[400406243,1767519940022,-195.0,0.00017214,2]
[400406244,1767519945714,-7400.09279494,0.00017229,2]
[400406245,1767519945881,-2149.3306405,0.00017229,2]
[400406246,1767519945906,-5701.348719,0.00017229,2]
[400406247,1767519946393,-600.0,0.00017231,2]
[400406248,1767519946424,-195.0,0.00017254,2]
[400406249,1767519946456,-1261.61046728,0.00017258,2]
[400406250,1767519946490,-4113.22093456,0.00017258,2]
[400406251,1767519946554,-1773.56813088,0.00017258,2]
[400406252,1767519946586,-151.0,0.00017289,2]
[400406253,1767519946616,-151.0,0.00017289,2]
[400406254,1767519946646,-151.0,0.00017289,2]
[400406255,1767519946677,-151.0,0.00017289,2]
[400406256,1767519946707,-151.0,0.00017289,2]
[400406257,1767519946737,-151.0,0.00017289,2]
[400406258,1767519946774,-151.0,0.00017289,2]
[400406259,1767519946805,-151.0,0.00017289,2]
[400406260,1767519946835,-151.0,0.00017289,2]
[400406261,1767519946868,-151.0,0.00017289,2]
[400406262,1767519946896,-151.0,0.00017289,2]
[400406263,1767519946926,-159.78582504,0.00017289,2]
[400406264,1767519946956,-1001.27930032,0.00017289,2]
[400406265,1767519946988,-1960.32,0.00017297,2]
[400406266,1767519947017,-191.56425836,0.00017298,2]
[400406267,1767519947162,-433.76623037,0.00017298,2]
[400406268,1767519947172,-479.07345135,0.00017298,2]
[400406269,1767519947187,-20.92654865,0.00017298,2]
[400406270,1767519947198,-130.07345135,0.00017298,2]
[400406271,1767519947214,-151.0,0.00017298,2]
[400406272,1767519947229,-71.93663582,0.00017298,2]
[400406273,1767519947239,-79.06336418,0.00017298,2]
[400406274,1767519947254,-151.0,0.00017298,2]
[400406275,1767519947287,-233.27119407,0.00017298,2]
[400406276,1767519947318,-314.30292888,0.00017298,2]
[400406277,1767519948864,282.939854,0.00017142,2]
[400406279,1767519972662,300.0,0.00017298,2]
[400406282,1767519990512,6700.0996,0.00017099,2]
[400406283,1767520000519,169.29155206,0.00017235,2]
[400406284,1767520013129,-194.85875248,0.00017299,2]
[400406285,1767520027189,1452.53074804,0.00017199,2]
[400406286,1767520027214,2076.71975196,0.00017199,2]
[400406287,1767520038098,-1644.38852304,0.00017299,2]
[400406288,1767520057866,1000.0,0.00017199,2]
[400406289,1767520063996,166.8755,0.00017099,2]
[400406290,1767520070240,6756.41474804,0.00017099,2]
[400406291,1767520070264,10000.01,0.00017099,2]
[400406292,1767520070288,10000.01,0.00017099,2]
[400406293,1767520070311,10000.01,0.00017099,2]
[400406294,1767520070334,10000.01,0.00017099,2]
[400406295,1767520070356,10000.01,0.00017099,2]
[400406296,1767520070377,10000.01,0.00017099,2]
[400406297,1767520070399,10000.01,0.00017099,2]
[400406298,1767520070435,10000.01,0.00017099,2]
[400406299,1767520070459,2197.79215196,0.00017099,2]
[400406300,1767520076217,2500.0,0.00017199,2]
[400406301,1767520082360,550.0,0.00017298,2]
[400406302,1767520088100,500.0,0.00017198,2]
[400406303,1767520088171,500.0,0.00017198,2]
[400406304,1767520088208,500.0,0.00017198,2]
[400406305,1767520088241,644.25699019,0.00017198,2]
[400406306,1767520088283,500.0,0.00017198,2]
[400406307,1767520088315,500.0,0.00017198,2]
[400406308,1767520088360,500.0,0.00017198,2]
[400406309,1767520091315,1107.96085785,0.00017235,2]
[400406310,1767520092890,-1529.88810761,0.00017235,2]
[400406311,1767520093133,-3059.77621522,0.00017235,2]
[400406312,1767520093348,-3880.45756956,0.00017235,2]
[400406313,1767520095098,250.0,0.00017267,2]
[400406314,1767520100039,501.81860917,0.00017198,2]
[400406315,1767520102819,269.05666369,0.00017298,2]
[400406316,1767520104751,404.91744336,0.00017298,2]
[400406317,1767520119042,813.30214466,0.00017099,2]
[400406318,1767520119066,416.94305534,0.00017099,2]
[400406319,1767520133630,1600.0,0.00016681,2]
[400406320,1767520134416,1600.0,0.00025021,120]
[400406321,1767520141233,300.0,0.00017298,2]
[400406322,1767520143400,7683.06694466,0.00017212,2]
[400406323,1767520143422,1524.27100534,0.00017212,2]
[400406324,1767520144486,209.34,0.00017,2]
[400406325,1767520151740,894.91811465,0.00017298,2]
[400406326,1767520164102,-5439.69923718,0.00017299,2]
[400406327,1767520166916,3240.0,0.00016662,2]
[400406328,1767520191743,4131.48088001,0.00017199,2]
[400406329,1767520191768,10000.01,0.00017199,2]
[400406330,1767520191793,10000.01,0.00017199,2]
[400406331,1767520191817,10000.01,0.00017199,2]
[400406332,1767520191844,10000.01,0.00017199,2]
[400406333,1767520191868,10000.01,0.00017199,2]
[400406334,1767520191894,10000.01,0.00017199,2]
[400406335,1767520191920,10000.01,0.00017199,2]
[400406336,1767520191949,10000.01,0.00017199,2]
[400406337,1767520191973,10000.01,0.00017199,2]
[400406338,1767520215568,1632.3679,0.000171,2]
[400406339,1767520229888,-164.97,0.00017189,2]
[400406340,1767520229926,-300.0,0.00017198,2]
[400406341,1767520229959,-1200.0,0.00017198,2]
[400406342,1767520229990,-300.0,0.00017198,2]
[400406348,1767520232177,-453.95773948,0.00017199,2]
[400406349,1767520232193,-259.85,0.00017199,2]
[400406350,1767520232205,-887.52956503,0.00017199,2]
[400406351,1767520232217,-349.17285286,0.00017199,2]
[400406352,1767520232229,-1331.28839075,0.00017199,2]
[400406353,1767520232242,-479.58345571,0.00017199,2]
[400406354,1767520232253,-932.78264644,0.00017199,2]
[400406355,1767520232296,-436.60011272,0.00017199,2]
[400406356,1767520232307,-434.57723662,0.00017199,2]
[400406357,1767520232330,-4354.95588453,0.00017199,2]
[400406358,1767520232358,-17310.495,0.00017199,2]
[400406359,1767520232371,-734.28249524,0.00017199,2]
[400406360,1767520232382,-2942.2982061,0.00017199,2]
[400406430,1767520236373,177.33670739,0.00017099,2]
[400406447,1767520238180,-1320.48682641,0.00017199,2]
[400406455,1767520238234,-1530.15023134,0.00017199,2]
[400406458,1767520238247,-349.056,0.00017199,2]
[400406460,1767520238324,-1995.08393896,0.00017199,2]
[400406461,1767520238343,-543.57890316,0.00017199,2]
[400406612,1767520240270,-653.76080498,0.00017199,2]
[400406625,1767520240396,-272737.71621439,0.00017199,2]
[400406628,1767520240409,-160786.89028321,0.00017199,2]
[400406630,1767520240422,-2280.9972858,0.00017199,2]
[400406632,1767520240435,-1956.161805,0.00017199,2]
[400406634,1767520240447,-534.0,0.00017199,2]
[400406637,1767520240459,-21041.45799257,0.00017199,2]
[400406639,1767520240471,-4348.12435315,0.00017199,2]
[400406641,1767520240483,-570.39513047,0.00017199,2]
[400406643,1767520240494,-5350.87,0.00017199,2]
[400406646,1767520240507,-3068.75885023,0.00017199,2]
[400406648,1767520240518,-823.99079452,0.00017199,2]
[400406674,1767520240792,-305.55524937,0.00017199,2]
[400406677,1767520240819,-394764.02087095,0.00017199,2]
[400406680,1767520240829,-1000.0,0.00017199,2]
[400406681,1767520240839,-295.0,0.00017199,2]
[400406683,1767520240852,-195.0,0.00017304,2]
[400406685,1767520240862,-9578.08275016,0.00017309,2]
[400406687,1767520240873,-300.0,0.00017317,2]
[400406689,1767520240882,-195.0,0.00017334,2]
[400406691,1767520240893,-600.0,0.00017334,2]
[400406693,1767520240903,-195.0,0.00017369,2]
[400406695,1767520240913,-2088.0,0.0001737,2]
[400406697,1767520240923,-9578.08275016,0.00017383,2]
[400406699,1767520240933,-600.0,0.00017384,2]
[400406701,1767520240942,-500.0,0.00017398,2]
[400406703,1767520240952,-189.68412088,0.00017398,2]
[400406705,1767520240961,-502.7457157,0.00017398,2]
[400406707,1767520240971,-500.0,0.00017398,2]
[400406709,1767520240981,-500.0,0.00017398,2]
[400406711,1767520240990,-500.0,0.00017398,2]
[400406713,1767520241000,-500.0,0.00017398,2]
[400406714,1767520241009,-511.4505041,0.00017398,2]
[400406715,1767520241019,-500.0,0.00017398,2]
[400406716,1767520241039,-637.66511868,0.00017398,2]
[400406717,1767520241053,-500.0,0.00017398,2]
[400406718,1767520241065,-500.0,0.00017398,2]
[400406719,1767520241076,-500.0,0.00017398,2]
[400406720,1767520241087,-504.56873782,0.00017398,2]
[400406721,1767520241098,-502.91817554,0.00017398,2]
[400406722,1767520241109,-500.0,0.00017398,2]
[400406723,1767520241120,-500.0,0.00017398,2]
[400406724,1767520241131,-507.49845072,0.00017398,2]
[400406725,1767520241142,-697.11,0.00017398,2]
[400406727,1767520241153,-500.0,0.00017398,2]
[400406729,1767520241164,-9578.08275016,0.00017457,2]
[400406731,1767520241175,-19971.92500393,0.00017498,2]
[400406733,1767520241185,-9578.08275016,0.00017531,2]
[400406735,1767520241196,-19971.92500391,0.00017543,2]
[400406737,1767520241207,-2088.0,0.00017558,2]
[400406740,1767520241217,-19971.92500391,0.00017587,2]
[400406742,1767520241228,-500.0,0.00017598,2]
[400406744,1767520241239,-505.99908912,0.00017598,2]
[400406746,1767520241250,-500.0,0.00017598,2]
[400406748,1767520241260,-500.0,0.00017598,2]
[400406750,1767520241270,-500.0,0.00017598,2]
[400406752,1767520241281,-500.0,0.00017598,2]
[400406754,1767520241291,-279.58387794,0.00017598,2]
[400406756,1767520241302,-500.0,0.00017598,2]
[400406758,1767520241312,-515.32073646,0.00017598,2]
[400406760,1767520241323,-500.0,0.00017598,2]
[400406763,1767520241334,-500.0,0.00017598,2]
[400406765,1767520241344,-500.0,0.00017598,2]
[400406767,1767520241354,-500.0,0.00017598,2]
[400406769,1767520241363,-500.0,0.00017598,2]
[400406771,1767520241374,-500.0,0.00017598,2]
[400406773,1767520241389,-500.0,0.00017598,2]
[400406775,1767520241400,-500.0,0.00017598,2]
[400406778,1767520241411,-500.0,0.00017598,2]
[400406780,1767520241422,-9578.08275016,0.00017604,2]
[400406782,1767520241433,-170.53,0.0001763,2]
[400406784,1767520241444,-19971.92500391,0.00017632,2]
[400406786,1767520241455,-500.0,0.00017644,2]
[400406788,1767520241466,-697.11,0.00017672,2]
[400406790,1767520241476,-19971.92500391,0.00017677,2]
[400406792,1767520241487,-9578.08275016,0.00017678,2]
[400406794,1767520241497,-19971.92500391,0.00017721,2]
[400406796,1767520241507,-9578.08275016,0.00017752,2]
[400406798,1767520241517,-19971.92500391,0.00017766,2]
[400406800,1767520241527,-301.5796,0.000178,2]
[400406801,1767520241538,-942.56574764,0.000178,2]
[400406802,1767520241548,-504.0,0.00017808,2]
[400406803,1767520241558,-19971.92500391,0.00017811,2]
[400406804,1767520241569,-9578.08275016,0.00017826,2]
[400406805,1767520241580,-1000.0,0.00017841,2]
[400406806,1767520241591,-19971.92500391,0.00017855,2]
[400406807,1767520241601,-500.0,0.00017872,2]
[400406808,1767520241611,-164.97,0.0001789,2]
[400406809,1767520241621,-158.248,0.00017898,2]
[400406810,1767520241631,-1378.355,0.00017898,2]
[400406811,1767520241643,-2000.0,0.00017898,2]
[400406812,1767520241654,-187.12449524,0.000179,2]
[400406813,1767520241664,-10000.0,0.000179,2]
[400406814,1767520241674,-528.58603757,0.000179,2]
[400406815,1767520241684,-19971.92500391,0.000179,2]
[400406816,1767520241695,-9578.08275016,0.000179,2]
[400406817,1767520241706,-29971.01601754,0.000179,2]
[400406818,1767520241716,-500.0,0.000179,2]
[400406819,1767520241726,-500.0,0.000179,2]
[400406820,1767520241736,-500.0,0.000179,2]
[400406821,1767520241746,-500.0,0.000179,2]
[400406822,1767520241760,-500.0,0.000179,2]
[400406823,1767520241771,-500.0,0.000179,2]
[400406824,1767520241781,-500.0,0.000179,2]
[400406825,1767520241791,-500.0,0.000179,2]
[400406826,1767520241801,-500.0,0.000179,2]
[400406827,1767520241812,-500.0,0.000179,2]
[400406828,1767520241822,-500.0,0.000179,2]
[400406829,1767520241832,-296.62190977,0.000179,2]
[400406830,1767520241842,-697.11,0.00017946,2]
[400406831,1767520241855,-164.97,0.0001799,2]
[400406832,1767520241865,-500.0,0.00017993,2]
[400406833,1767520241875,-510.8039788,0.00017999,2]
[400406834,1767520241886,-13599.2874915,0.00017999,2]
[400406835,1767520241896,-1709.0,0.00018,2]
[400406836,1767520241906,-1987574.70877189,0.00018,2]
[400406837,1767520241923,-971.65257382,0.00018,2]
[400406838,1767520241935,-335.42324965,0.00018,2]
[400406839,1767520241947,-1038.324984,0.00018,2]
[400406840,1767520241959,-1038618.62319706,0.00018,2]
[400406841,1767520241969,-1362883.42849677,0.00018,2]
[400406842,1767520241979,-105324.22722703,0.00018,2]
[400406843,1767520241990,-2794194.42417817,0.00018,2]
[400406844,1767520242022,168.57785667,0.00017099,2]
[400406857,1767520243666,250.0,0.00017,2]
[400406859,1767520243991,-21.65097253,0.00018,2]
[400406862,1767520244959,-0.21091376,0.00018,2]
[400406863,1767520245175,188.33966458,0.00017198,2]
[400406864,1767520245208,303.63636126,0.00017198,2]
[400406865,1767520245299,500.0,0.00017198,2]
[400406866,1767520245365,641.45330201,0.00017198,2]
[400406870,1767520246172,-168.57785664,0.00017366,2]
[400406871,1767520246263,-1569.64979999,0.00018,2]
[400406872,1767520246277,-156821.18637486,0.00018,2]
[400406873,1767520246371,-12327.340356,0.00018,2]
[400406874,1767520246479,-454929.59334612,0.00018,2]
[400406875,1767520246491,-353316.0117658,0.00018,2]
[400406876,1767520250200,548.42449953,0.00017398,2]
[400406877,1767520250886,168.57785664,0.00017633,2]
[400406878,1767520262677,500.0,0.00017398,2]
[400406879,1767520327505,151.0,0.00043722,30]
[400406880,1767520328123,151.0,0.00043722,30]
[400406881,1767520328717,151.0,0.00043722,30]
[400406882,1767520329388,151.0,0.00043722,30]
[400406883,1767520329882,200.0,0.00043722,30]
[400406884,1767520330015,151.0,0.00043722,30]
[400406885,1767520330628,151.0,0.00043722,30]
[400406886,1767520330829,200.0,0.00043722,30]
[400406887,1767520331240,151.0,0.00043722,30]
[400406888,1767520331939,151.0,0.00043722,30]
[400406889,1767520332563,151.0,0.00043722,30]
[400406890,1767520333172,151.0,0.00043722,30]
[400406891,1767520333802,151.0,0.00043722,30]
[400406892,1767520344584,200.0,0.00043722,30]
[400406893,1767520357085,4538.76,0.00016438,2]
[400406894,1767520361570,-500.0,0.00017198,2]
[400406895,1767520361602,-500.0,0.00017198,2]
[400406896,1767520361632,-500.0,0.00017198,2]
[400406897,1767520361666,-184.54881248,0.00017198,2]
[400406898,1767520361695,-500.0,0.00017198,2]
[400406899,1767520361724,-456.14070919,0.00017198,2]
[400406925,1767520393794,1200.0,0.00017198,2]
[400406929,1767520441900,550.0,0.00017198,2]
[400406930,1767520468130,1000.0,0.00017156,2]
[400406931,1767520471132,168.57785664,0.00017099,2]
[400406933,1767520501256,300.0,0.00017198,2]
[400406934,1767520501300,300.0,0.00017198,2]
[400406935,1767520501340,1200.0,0.00017198,2]
[400406936,1767520503086,0.05310002,0.00017153,2]
[400406937,1767520503111,1422.78689998,0.00017153,2]
[400406939,1767520556626,2205.24779038,0.00017099,2]
[400406940,1767520561244,300.0,0.00017198,2]
[400406941,1767520561609,2205.24779036,0.00017188,2]
[400406943,1767520638589,95540.05319873,0.00043722,30]
[400406944,1767520642410,718.0,0.00043722,30]
[400406945,1767520682288,-300.0,0.00017188,2]
[400406946,1767520696249,-480.0,0.00017188,2]
[400406947,1767520730807,5110.63,0.00016815,2]
[400406948,1767520763842,-4407.80523231,0.00017099,2]
[400406949,1767520769841,-4407.80523225,0.00017188,2]
[400406950,1767520779739,-4905.54622478,0.00017189,2]
[400406951,1767520785690,-10000.01,0.00017189,2]
[400406952,1767520785784,-4589.86893602,0.00017189,2]
[400406953,1767520785814,-270.27212796,0.00017198,2]
[400406954,1767520785850,-279.72787204,0.00017198,2]
[400406955,1767520874505,-594.2092946,0.00017099,2]
[400406956,1767520874534,-779.34584,0.00017107,2]
[400406957,1767520874563,-300.0,0.0001715,2]
[400406958,1767520874597,-2500.0,0.00017193,2]
[400406959,1767520874630,-347.75704666,0.00017196,2]
[400406960,1767520874717,-957.38563748,0.00017198,2]
[400406961,1767520876556,13893.15,0.00016726,2]
[400406965,1767520881132,-242.61436252,0.00017198,2]
[400406966,1767520881164,-300.0,0.00017198,2]
[400406967,1767520881194,-550.0,0.00017198,2]
[400406968,1767520881224,-300.0,0.00017198,2]
[400406969,1767520881254,-295.0,0.00017198,2]
[400406970,1767520881285,-500.0,0.00017198,2]
[400406971,1767520881314,-500.0,0.00017198,2]
[400406972,1767520881344,-500.0,0.00017198,2]
[400406973,1767520881374,-500.0,0.00017198,2]